bitfinex-derivatives/quotes_ETHF0:USTF0_20250709
["timestamp","ask_amount","ask_price","bid_price","bid_amount"]
[1752069561100,2.0006,2656.7,2656.6,0.75273]
[1752069561300,1.2479,2656.7,2656.6,0.75273]
[1752069561806,1.2479,2656.7,2656.6,1.68693]
[1752069562098,3.2078,2657.2,2656.6,0.9342]
[1752069562298,0.7526,2657.1,2656.7,0.9342]
[1752069562495,1.3039,2657.1,2657.0,0.75262]
[1752069562799,1.3039,2657.1,2657.0,0.9342]
[1752069563003,2.05649,2657.1,2656.9,0.75263]
[1752069563200,1.3039,2657.1,2656.9,0.75263]
[1752069563506,2.05651,2657.1,2657.0,0.75262]
[1752069563807,0.75258,2657.2,2657.1,0.75259]
[1752069564003,0.75256,2657.2,2657.1,0.9342]
[1752069564205,0.75259,2657.2,2657.0,0.7526]
[1752069564404,0.75259,2657.2,2657.0,1.68679]
[1752069564600,0.75259,2657.1,2657.0,0.9342]
[1752069565304,0.75258,2657.2,2657.0,1.5546]
[1752069565606,0.75258,2657.2,2657.1,0.75258]
[1752069565905,1.22368,2657.2,2657.1,0.6204]
[1752069566305,1.22368,2657.2,2657.1,1.37299]
[1752069567201,1.22368,2657.2,2657.1,0.6204]
[1752069567400,0.75259,2657.1,2657.0,0.7526]
[1752069567601,1.88128,2657.4,2657.1,0.75258]
[1752069567800,1.88128,2657.4,2657.1,0.6204]
[1752069567801,0.75259,2657.2,2657.1,0.6204]
[1752069568205,1.22369,2657.2,2657.1,0.6204]
[1752069569307,1.22369,2657.2,2657.1,2.30719]
[1752069570007,0.75261,2657.1,2657.0,0.7526]
[1752069570307,2.57561,2657.1,2657.0,1.373]
[1752069571409,1.3519,2657.1,2657.0,2.3072]
[1752069571803,2.10449,2657.1,2657.0,2.3072]
[1752069572210,1.88166,2656.9,2656.1,0.9342]
[1752069572406,0.75282,2656.4,2656.3,0.7528]
[1752069572604,1.22392,2656.4,2656.3,0.6204]
[1752069572805,0.75287,2656.1,2656.0,3.2078]
[1752069573004,0.75285,2656.2,2656.1,0.75286]
[1752069573199,0.75285,2656.2,2656.1,1.37326]
[1752069573400,0.75285,2656.2,2656.1,2.30746]
[1752069573604,1.2368,2656.3,2656.1,1.5546]
[1752069573805,0.75284,2656.2,2656.1,2.30744]
[1752069574503,1.22394,2656.2,2656.1,1.37324]
[1752069574907,1.22394,2656.2,2656.1,0.6204]
[1752069575105,1.22394,2656.2,2656.1,1.37327]
[1752069575506,0.4711,2656.2,2656.1,1.37327]
[1752069575703,0.4711,2656.2,2656.1,2.30747]
[1752069575909,1.22394,2656.2,2656.1,2.30747]
[1752069576313,1.88245,2655.8,2655.2,0.9342]
[1752069576608,0.75305,2655.5,2655.4,0.75306]
[1752069576808,0.75305,2655.5,2655.4,0.6204]
[1752069577202,0.75302,2655.6,2655.5,0.75302]
[1752069577402,3.2078,2655.8,2655.4,0.6204]
[1752069577610,0.75291,2656.0,2655.9,0.75292]
[1752069578207,5.89949,2656.1,2655.9,0.75292]
[1752069578403,3.2078,2656.5,2655.6,5.17978876]
[1752069578715,0.75288,2656.1,2656.0,0.7529]
[1752069579011,0.75286,2656.2,2656.0,0.7529]
[1752069579209,2.48997,2656.1,2656.0,0.7529]
[1752069579410,1.266,2656.1,2656.0,0.7529]
[1752069579710,2.48997,2656.1,2656.0,1.3733]
[1752069580211,2.48997,2656.1,2656.0,0.6204]
[1752069581205,1.7371,2656.1,2656.0,1.3733]
[1752069581410,0.4711,2656.1,2656.0,1.3733]
[1752069583209,0.75284,2656.2,2656.1,0.75287]
[1752069583409,0.75284,2656.2,2656.1,1.37327]
[1752069583608,1.22394,2656.2,2656.1,1.37327]
[1752069584012,1.22394,2656.2,2656.1,0.6204]
[1752069584515,1.22394,2656.2,2656.1,1.37327]
[1752069584915,1.22395,2656.2,2656.1,1.37327]
[1752069585112,1.22394,2656.2,2656.1,0.6204]
[1752069585415,0.75293,2656.0,2655.9,0.75291]
[1752069585617,1.22403,2656.0,2655.9,1.37331]
[1752069586511,0.75297,2655.8,2655.5,4.8236]
[1752069586716,0.75296,2655.9,2655.8,0.75294]
[1752069586916,1.7578,2655.9,2655.8,1.37334]
[1752069587217,3.96066,2656.2,2656.1,0.75287]
[1752069587416,2.03961,2656.1,2656.0,0.75288]
[1752069587612,2.51071,2656.1,2656.0,0.75288]
[1752069587815,2.03961,2656.1,2656.0,0.75288]
[1752069588015,2.51071,2656.1,2656.0,0.75288]
[1752069588516,2.03961,2656.1,2656.0,1.37328]
[1752069588910,0.75286,2656.2,2656.1,0.75287]
[1752069589222,2.0296,2656.4,2656.3,0.75282]
[1752069589410,30.50764175,2656.4,2656.3,1.37322]
[1752069589816,30.50764175,2656.4,2655.9,3.9607]
[1752069589817,0.7529,2656.0,2655.9,3.9607]
[1752069590017,27.6869,2656.0,2655.9,3.9607]
[1752069590414,29.4348,2656.0,2655.9,4.5811]
[1752069590618,29.4344,2656.0,2655.9,4.5811]
[1752069591219,1.7475,2656.0,2655.9,4.5811]
[1752069591522,26.932,2656.1,2656.0,0.7529]
[1752069591718,26.932,2656.1,2656.0,2.3303]
[1752069591914,0.75284,2656.3,2656.2,0.75285]
[1752069592220,29.69869567,2656.3,2656.2,1.37995]
[1752069592921,2.76769567,2656.3,2656.2,1.37995]
[1752069593122,29.69869567,2656.3,2656.2,1.37995]
[1752069593322,2.01485567,2656.3,2656.2,1.37995]
[1752069593523,29.69667567,2656.3,2656.2,1.37995]
[1752069594522,32.99396443,2656.3,2656.2,0.75285]
[1752069594730,6.06496443,2656.3,2656.2,0.75285]
[1752069594919,32.99496443,2656.3,2656.2,0.75285]
[1752069595813,32.99496443,2656.3,2656.2,1.37995]
[1752069596424,32.99496443,2656.3,2656.2,0.75285]
[1752069596926,28.94285567,2656.3,2656.2,1.37995]
[1752069598829,29.69567567,2656.3,2656.2,1.37995]
[1752069599022,28.94285567,2656.3,2656.2,1.37995]
[1752069599520,30.97347567,2656.3,2656.2,1.37995]
[1752069599722,30.97347567,2656.3,2655.9,6.0404]
[1752069599723,0.75289,2656.2,2656.1,0.75285]
[1752069599923,6.87213443,2656.2,2656.1,0.75285]
[1752069600228,6.87213443,2656.2,2656.1,1.37995]
[1752069600418,7.34413443,2656.2,2656.1,1.37995]
[1752069600621,10.55193443,2656.2,2656.1,1.37995]
[1752069600924,6.50175567,2656.2,2656.1,0.75285]
[1752069601123,33.42175567,2656.2,2656.1,1.37995]
[1752069601322,0.75293,2656.0,2655.9,0.7529]
[1752069601629,0.75296,2655.9,2655.8,0.75294]
[1752069601823,3.55951567,2655.9,2655.8,1.38004]
[1752069602128,3.55951567,2655.9,2655.8,0.75296]
[1752069602323,3.55951567,2655.9,2655.8,1.38006]
[1752069602627,3.55951567,2655.9,2655.5,5.77199]
[1752069602628,6.85680443,2655.9,2655.5,3.2078]
[1752069602830,0.75302,2655.7,2655.6,0.75299]
[1752069603023,2.29717567,2655.7,2655.6,1.38009]
[1752069603225,0.75302,2655.6,2655.5,0.75304]
[1752069603422,3.27855567,2655.6,2655.5,0.6271]
[1752069603621,27.67102,2655.6,2655.5,4.58794]
[1752069603826,29.22055399,2655.6,2655.5,1.38014]
[1752069604231,28.46753399,2655.6,2655.5,1.38014]
[1752069604729,26.918,2655.6,2655.5,1.38014]
[1752069605023,27.67102,2655.6,2655.5,0.6271]
[1752069605229,30.96930026,2655.6,2655.5,0.6271]
[1752069605433,1.88262,2655.5,2655.2,3.2078]
[1752069605629,0.75319,2655.0,2654.9,3.2078]
[1752069605828,0.75319,2655.0,2654.7,0.75323]
[1752069605829,29.13435773,2655.0,2654.7,0.75323]
[1752069606132,0.75326,2654.8,2654.6,1.7036]
[1752069606326,27.66827,2654.7,2654.6,0.9503]
[1752069606527,26.915,2654.7,2654.6,0.9503]
[1752069606728,27.66827,2654.7,2654.6,1.5774]
[1752069606923,0.472,2654.7,2654.6,1.5774]
[1752069607129,0.7126,2655.4,2654.6,1.5774]
[1752069607130,0.295,2655.5,2654.8,1.88312]
[1752069607428,1.04807,2655.5,2655.2,3.2078]
[1752069607732,1.04807,2655.5,2655.4,0.75307]
[1752069607933,0.295,2655.5,2655.4,0.75307]
[1752069608327,1.04804,2655.5,2655.4,0.75307]
[1752069608927,1.04804,2655.5,2655.2,3.2078]
[1752069608928,0.767,2655.5,2654.9,3.9035]
[1752069609224,3.2078,2655.0,2654.6,1.5774]
[1752069609429,1.5485731,2654.9,2654.8,0.75324]
[1752069609628,26.912,2655.0,2654.9,0.75322]
[1752069609830,0.75319,2655.1,2655.0,0.75319]
[1752069610130,2.3027332,2655.1,2655.0,0.75317]
[1752069610330,1.5495432,2655.1,2655.0,0.75317]
[1752069610727,26.911,2655.4,2655.3,0.7531]
[1752069610924,1.5489908,2655.4,2655.3,0.7531]
[1752069611129,0.75307,2655.5,2655.1,1.88289]
[1752069611431,0.75306,2655.5,2655.2,3.2078]
[1752069611636,0.75304,2655.6,2655.4,0.75307]
[1752069611929,54.24,2655.8,2655.4,3.2078]
[1752069612129,1.54904475,2655.7,2655.4,3.9164]
[1752069612330,26.91,2655.8,2655.4,3.9164]
[1752069612530,0.75302,2655.6,2655.5,1.70332]
[1752069613235,0.75301,2655.7,2655.6,0.75301]
[1752069613429,0.75302,2655.6,2655.5,2.01442]
[1752069613633,0.75302,2655.6,2655.5,2.96472]
[1752069614332,0.75298,2655.8,2655.7,0.75298]
[1752069614545,0.75301,2655.7,2655.6,0.753]
[1752069614732,0.75301,2655.7,2655.6,1.7033]
[1752069615632,0.75301,2655.7,2655.6,0.9503]
[1752069616927,0.75304,2655.5,2655.4,4.66947]
[1752069617126,0.75304,2655.5,2655.4,5.61977]
[1752069617939,0.75304,2655.5,2655.4,6.24687]
[1752069618237,0.75304,2655.5,2655.4,5.4938]
[1752069618440,0.75304,2655.5,2655.4,3.03907]
[1752069619442,0.75304,2655.6,2655.5,0.75301]
[1752069619738,0.75304,2655.6,2655.5,2.37501]
[1752069620533,1.22504,2655.6,2655.5,0.6271]
[1752069620739,0.75313,2655.2,2655.1,4.2027]
[1752069620934,0.75322,2654.9,2654.8,0.6606]
[1752069621132,1.88299,2655.0,2654.5,0.9949]
[1752069621332,0.75333,2654.5,2654.3,3.2078]
[1752069621530,2.02256,2654.4,2654.3,3.2078]
[1752069621728,0.75336,2654.4,2654.3,3.96119]
[1752069621929,0.75336,2654.4,2654.3,4.95609]
[1752069622240,0.75336,2654.4,2654.3,1.74827]
[1752069622643,0.75335,2654.5,2654.4,0.75335]
[1752069622940,1.9344,2654.8,2654.4,0.9949]
[1752069623137,0.7533,2654.7,2654.6,0.75329]
[1752069623534,0.7533,2654.7,2654.6,0.9949]
[1752069623739,1.2692,2654.8,2654.3,3.96116]
[1752069623931,1.2692,2654.8,2654.3,0.75336]
[1752069623932,0.75335,2654.5,2654.3,0.75336]
[1752069624137,1.88321,2654.7,2654.1,1.6576]
[1752069624333,1.99167,2654.4,2654.3,0.75339]
[1752069624534,1.88309,2654.9,2654.3,4.2027]
[1752069624535,0.75323,2654.9,2654.3,4.2027]
[1752069624735,3.8667,2655.2,2654.6,3.2078]
[1752069624736,5.105,2655.2,2654.6,3.2078]
[1752069624937,0.75319,2655.0,2654.8,0.75322]
[1752069625133,0.75322,2654.9,2654.8,0.9949]
[1752069625337,0.75324,2654.8,2654.7,0.6627]
[1752069625537,5.105,2655.2,2655.1,0.75316]
[1752069625738,4.75459621,2655.2,2655.1,1.74806]
[1752069625931,3.96085,2655.5,2655.1,1.74806]
[1752069626130,3.2078,2655.5,2655.4,0.75307]
[1752069626336,5.51136245,2655.5,2655.4,0.75307]
[1752069626541,5.51136245,2655.5,2655.4,1.74797]
[1752069626737,1.55051245,2655.5,2655.4,1.74797]
[1752069626936,4.5086,2655.8,2655.7,0.75299]
[1752069627131,5.51152147,2655.8,2655.7,0.75299]
[1752069627341,2.30372147,2655.8,2655.7,1.74789]
[1752069627641,0.75302,2655.6,2655.3,4.8968]
[1752069627937,35.41516327,2656.1,2655.4,0.75305]
[1752069627938,0.75306,2655.5,2655.4,0.75305]
[1752069628141,1.3008,2655.5,2655.3,0.9949]
[1752069628341,2.05386,2655.5,2655.4,0.75307]
[1752069628543,1.3008,2655.5,2655.0,0.9949]
[1752069628743,0.75313,2655.3,2655.2,0.75312]
[1752069628938,4.60816327,2655.5,2654.7,1.689]
[1752069629139,1.44199,2655.4,2655.2,0.75312]
[1752069629339,1.44199,2655.4,2655.0,3.2078]
[1752069629340,31.98626,2655.8,2655.3,0.9949]
[1752069629539,0.75307,2655.4,2655.3,1.74798]
[1752069629837,0.7531,2655.3,2655.2,0.75311]
[1752069630039,0.75315,2655.2,2655.1,0.75314]
[1752069630240,0.75311,2655.3,2655.2,0.7531]
[1752069630539,0.75311,2655.3,2655.2,1.748]
[1752069630839,0.75317,2655.1,2655.0,0.75316]
[1752069631039,0.75319,2655.0,2654.9,1.74809]
[1752069631240,1.2577,2655.2,2654.9,0.9949]
[1752069631437,0.75309,2655.4,2655.3,0.75308]
[1752069631838,0.75306,2655.5,2655.4,0.75305]
[1752069632043,1.54951675,2655.5,2655.4,0.75305]
[1752069632245,1.54951675,2655.5,2655.4,5.05531327]
[1752069632444,0.75297,2655.8,2655.7,0.75299]
[1752069632643,2.30256146,2655.9,2655.8,0.75296]
[1752069632843,2.30261923,2655.9,2655.8,0.75296]
[1752069633147,0.75299,2655.8,2655.7,0.75297]
[1752069633338,0.75307,2655.5,2655.4,0.75306]
[1752069633539,0.75307,2655.4,2655.3,0.75306]
[1752069634139,0.75306,2655.5,2655.4,0.75304]
[1752069634341,1.2354,2655.6,2655.5,0.75304]
[1752069634546,0.75304,2655.5,2655.4,1.74797]
[1752069634746,0.75312,2655.3,2655.2,0.7531]
[1752069635144,0.75316,2655.2,2655.1,0.75314]
[1752069635344,0.75304,2655.6,2655.5,0.75302]
[1752069635544,0.753,2655.7,2655.6,0.753]
[1752069636247,0.75302,2655.6,2655.5,1.74792]
[1752069636644,0.75302,2655.6,2655.5,1.74793]
[1752069636947,0.75302,2655.6,2655.5,0.75303]
[1752069637149,1.2558,2655.7,2655.6,0.75302]
[1752069637541,1.2558,2655.7,2655.6,1.74792]
[1752069638346,2.00879,2655.7,2655.6,0.75302]
[1752069638547,1.2558,2655.7,2655.3,1.674]
[1752069638752,0.75305,2655.6,2655.5,0.75303]
[1752069638953,0.75307,2655.5,2655.4,0.75305]
[1752069639752,5.0,2655.5,2655.3,0.75308]
[1752069639947,2.8181,2655.4,2655.3,0.7531]
[1752069640149,0.75315,2655.2,2655.1,0.75313]
[1752069642054,0.75323,2655.0,2654.9,0.75319]
[1752069642251,4.06059327,2655.0,2654.3,3.2078]
[1752069642458,2.05805,2654.9,2654.8,0.75324]
[1752069643058,0.75328,2654.8,2654.7,0.75326]
[1752069643258,0.7533,2654.7,2654.6,0.75328]
[1752069643453,2.05807,2654.8,2654.7,0.75327]
[1752069643957,0.7533,2654.7,2654.6,0.75328]
[1752069644153,1.2607,2654.7,2654.6,0.75328]
[1752069644360,1.2607,2654.7,2654.6,1.74818]
[1752069644656,3.2078,2655.1,2655.0,0.75319]
[1752069644657,30.84396,2655.1,2655.0,0.75319]
[1752069644854,32.90191657,2655.1,2654.6,6.08594]
[1752069645056,2.30360657,2655.0,2654.9,0.75321]
[1752069645259,2.81111657,2655.0,2654.9,0.75321]
[1752069645459,1.2607,2655.0,2654.9,0.75321]
[1752069646255,27.63712,2655.3,2655.2,0.75313]
[1752069646458,1.88283,2655.2,2654.6,1.88324]
[1752069646659,0.75323,2654.9,2654.8,0.75321]
[1752069646859,0.7532,2655.0,2654.9,0.75319]
[1752069647050,2.8729369,2655.0,2654.9,0.75319]
[1752069647256,1.3222,2655.0,2654.9,0.75319]
[1752069647460,2.87305829,2655.0,2654.9,0.75319]
[1752069647861,1.3222,2655.0,2654.9,0.75319]
[1752069648063,2.07539,2655.0,2654.9,0.75319]
[1752069648260,3.62637984,2655.0,2654.6,0.00564239]
[1752069648466,0.75327,2654.8,2654.7,0.75325]
[1752069648761,0.75327,2654.7,2654.6,0.75892239]
[1752069649163,0.75326,2654.8,2654.7,0.75324]
[1752069649676,2.30416662,2654.8,2654.7,0.75324]
[1752069649970,3.60286662,2654.8,2654.7,0.75324]
[1752069650469,1.2987,2654.8,2654.7,0.75324]
[1752069650871,2.85033092,2654.8,2654.7,0.75324]
[1752069651161,1.2987,2654.8,2654.7,1.71494]
[1752069651469,2.05194,2654.8,2654.7,0.75324]
[1752069651768,0.75327,2654.7,2654.6,0.75892239]
[1752069651961,1.2987,2654.7,2654.6,0.75892239]
[1752069652463,0.75338,2654.4,2654.0,5.09145]
[1752069652768,28.1787,2654.3,2654.2,0.75341]
[1752069652960,28.93209,2654.3,2654.2,0.75341]
[1752069653167,1.2987,2654.3,2654.2,0.75341]
[1752069653664,1.2987,2654.3,2654.2,1.71511]
[1752069654166,1.2987,2654.3,2654.2,0.75341]
[1752069654361,1.2987,2654.3,2653.9,0.9617]
[1752069654558,1.2987,2654.3,2653.7,7.85346327]
[1752069654770,1.2987,2654.3,2654.2,0.75341]
[1752069655577,0.6607,2654.6,2654.4,0.75333]
[1752069655768,1.9133,2654.6,2654.3,0.75337]
[1752069655973,0.75336,2654.4,2654.3,0.75337]
[1752069656169,1.9133,2654.6,2654.2,0.9617]
[1752069656374,3.2078,2654.7,2654.3,0.9617]
[1752069656879,0.00564239,2654.9,2654.8,0.75324]
[1752069657176,0.00564239,2654.9,2654.8,1.71494]
[1752069658376,3.2078,2655.4,2654.8,4.1695]
[1752069658574,1.55101306,2655.3,2655.2,0.75313]
[1752069658775,3.2078,2655.7,2655.6,0.75302]
[1752069659074,5.51200849,2655.7,2655.6,0.75302]
[1752069659276,4.75901849,2655.7,2655.3,0.6716]
[1752069659579,0.75305,2655.5,2655.4,0.75306]
[1752069659776,0.75307,2655.4,2655.3,1.42469]
[1752069660284,30.0858,2655.7,2654.9,0.9617]
[1752069660484,0.75305,2655.5,2655.4,0.75305]
[1752069660871,0.75309,2655.4,2655.3,0.75309]
[1752069661071,0.75311,2655.3,2655.2,0.75311]
[1752069661478,6.51516327,2655.7,2654.7,0.9617]
[1752069661479,3.30736327,2655.4,2654.7,0.9617]
[1752069661779,1.54945495,2655.3,2654.7,0.9617]
[1752069661970,1.88305,2654.9,2654.3,4.1695]
[1752069662179,3.30736327,2654.5,2654.1,0.6544]
[1752069662479,5.0911,2654.6,2654.5,0.75333]
[1752069662480,26.876,2654.6,2654.5,0.75333]
[1752069663076,0.7126,2654.8,2654.7,0.75327]
[1752069663276,2.26183785,2654.8,2654.7,0.75327]
[1752069664075,1.54923785,2654.8,2654.7,1.71497]
[1752069664381,3.2078,2654.9,2654.8,0.75324]
[1752069665176,0.75318,2655.1,2654.8,0.9617]
[1752069665372,0.75318,2655.1,2655.0,0.75318]
[1752069665373,27.62818,2655.1,2655.0,0.75318]
[1752069665578,29.1795012,2655.1,2655.0,0.75318]
[1752069666277,1.5513212,2655.1,2655.0,0.75318]
[1752069666473,26.875,2655.2,2655.1,0.75316]
[1752069666677,28.42676819,2655.2,2655.1,0.75316]
[1752069666979,28.42676819,2655.2,2655.0,1.71488]
[1752069667281,0.75321,2655.0,2654.9,0.7532]
[1752069667485,0.75318,2655.1,2655.0,0.75319]
[1752069667674,1.5520973,2655.1,2655.0,0.75319]
[1752069667883,0.75323,2654.9,2654.8,0.75321]
[1752069668378,0.75321,2655.0,2654.9,0.75319]
[1752069668780,0.75321,2655.0,2654.9,0.75322]
[1752069669182,2.30623726,2655.0,2654.9,0.75322]
[1752069669484,0.75324,2654.9,2654.8,0.75323]
[1752069669786,0.75321,2655.0,2654.9,0.75322]
[1752069669986,0.75326,2654.8,2654.6,0.9617]
[1752069670182,0.75329,2654.7,2654.6,0.75329]
[1752069670583,0.75332,2654.6,2654.5,0.7533]
[1752069671186,0.75342,2654.3,2654.2,0.75339]
[1752069671387,0.75344,2654.2,2654.1,0.75342]
[1752069671587,0.7534,2654.3,2654.2,0.75337]
[1752069671985,0.75344,2654.2,2654.1,0.75343]
[1752069672387,30.0788,2654.7,2654.1,3.30736327]
[1752069672585,30.0788,2654.7,2654.1,1.88362]
[1752069672586,1.55210797,2654.6,2654.1,1.88362]
[1752069672784,0.75334,2654.6,2654.5,0.75331]
[1752069672984,0.75337,2654.5,2654.4,0.75333]
[1752069673288,2.30537787,2654.5,2654.4,0.75333]
[1752069673486,1.55200787,2654.5,2654.4,0.75333]
[1752069673691,2.30533787,2654.5,2654.4,0.75333]
[1752069673990,1.55200787,2654.5,2654.4,0.75333]
[1752069674190,2.30520638,2654.5,2654.2,2.55463]
[1752069674386,0.75335,2654.5,2654.4,0.75333]
[1752069674585,2.10502,2654.6,2654.0,3.2078]
[1752069674886,2.12246,2654.4,2654.3,0.75339]
[1752069675287,27.5298,2654.8,2654.0,0.9617]
[1752069675492,0.75332,2654.6,2654.5,0.7533]
[1752069675691,0.75337,2654.5,2654.4,0.75334]
[1752069675886,2.12242,2654.6,2654.5,0.75333]
[1752069676189,3.67426666,2654.6,2654.5,0.75333]
[1752069676385,1.55184666,2654.6,2654.5,1.71503]
[1752069677393,1.55184666,2654.6,2654.5,0.75333]
[1752069677597,2.81124666,2654.6,2654.5,0.75333]
[1752069677790,1.2594,2654.6,2654.5,0.75333]
[1752069678287,0.75339,2654.4,2654.3,0.75335]
[1752069678491,2.01272,2654.6,2654.5,0.75333]
[1752069678685,0.75336,2654.5,2654.4,0.75334]
[1752069678884,0.75339,2654.4,2654.3,0.75336]
[1752069679390,1.2594,2654.5,2654.3,0.75336]
[1752069679590,0.75338,2654.4,2654.3,0.75336]
[1752069680193,2.01273,2654.5,2654.4,0.75336]
[1752069680393,3.57499635,2654.5,2654.4,0.75336]
[1752069680587,4.03959635,2654.5,2654.4,0.75336]
[1752069680789,0.75336,2654.4,2654.3,1.40407]
[1752069680983,0.75336,2654.4,2654.1,0.9559]
[1752069680984,0.75341,2654.3,2654.2,0.75339]
[1752069681186,0.75347,2654.1,2654.0,0.75345]
[1752069681789,0.75347,2654.0,2653.9,3.2078]
[1752069681988,2.03507,2654.0,2653.9,3.2078]
[1752069682190,0.75355,2653.8,2653.7,0.75353]
[1752069682588,0.75355,2653.8,2653.5,4.1637]
[1752069682589,1.2816,2654.0,2653.9,0.7535]
[1752069682793,3.2078,2654.1,2654.0,0.75347]
[1752069683188,4.7690248,2654.1,2654.0,0.75347]
[1752069683389,4.7690248,2654.1,2653.5,6.04771]
[1752069683390,0.75353,2653.9,2653.5,6.04771]
[1752069683588,0.75356,2653.8,2653.7,0.75354]
[1752069684090,1.43571,2653.9,2653.8,0.75353]
[1752069684297,1.956,2653.9,2653.8,0.75353]
[1752069684996,3.2078,2654.1,2654.0,0.75347]
[1752069685192,3.2078,2654.1,2653.9,0.75348]
[1752069685492,1.2738,2654.0,2653.9,0.75348]
[1752069685694,2.02727,2654.0,2653.9,0.75348]
[1752069686287,2.71017,2654.0,2653.9,0.75348]
[1752069686487,0.75354,2653.9,2653.8,0.75352]
[1752069686692,2.09334,2653.9,2653.8,0.75352]
[1752069687298,1.3398,2653.9,2653.8,0.75352]
[1752069687690,1.3398,2653.9,2653.8,1.41852]
[1752069687893,3.2078,2654.4,2654.1,0.7534]
[1752069688197,3.2078,2654.4,2654.1,1.4184]
[1752069688198,1.21823,2654.2,2654.1,1.4184]
[1752069688398,2.78065499,2654.2,2654.1,1.4184]
[1752069688700,0.75344,2654.1,2654.0,0.75345]
[1752069688888,2.55804,2654.1,2654.0,0.75345]
[1752069689092,0.75351,2654.0,2653.9,0.75348]
[1752069689299,0.75353,2653.9,2653.8,0.75351]
[1752069689798,2.54803,2653.9,2653.8,0.75351]
[1752069690596,1.7945,2653.9,2653.8,1.41851]
[1752069690999,2.548,2653.9,2653.8,1.41851]
[1752069691402,0.75353,2653.8,2653.7,0.75354]
[1752069691596,0.75356,2653.7,2653.6,0.00564239]
[1752069692000,2.08326,2653.7,2653.6,0.00564239]
[1752069692395,2.08326,2653.7,2653.6,0.75923239]
[1752069692591,2.08326,2653.7,2653.6,0.00564239]
[1752069692592,2.54806,2653.7,2653.6,0.00564239]
[1752069692999,7.54806,2653.7,2653.6,0.00564239]
[1752069693199,2.54806,2653.7,2653.6,0.00564239]
[1752069694296,0.75372,2653.2,2653.1,0.75372]
[1752069694503,0.7537,2653.2,2653.1,0.665]
[1752069695003,0.75376,2653.0,2652.9,3.39339795]
[1752069695204,0.75376,2653.0,2652.9,0.18559795]
[1752069696005,2.00676,2653.0,2652.9,0.18559795]
[1752069696398,2.00676,2653.0,2652.9,0.85059795]
[1752069696598,2.47156,2653.0,2652.9,0.18559795]
[1752069696795,2.47156,2653.0,2652.9,0.93937795]
[1752069696995,1.7178,2653.0,2652.9,1.60437795]
[1752069697206,2.00676,2653.0,2652.9,1.60437795]
[1752069697500,27.5599,2653.4,2653.0,1.8844]
[1752069697701,27.61664,2653.4,2653.3,1.41867]
[1752069697901,0.75364,2653.4,2653.3,1.41867]
[1752069698106,31.3228,2653.6,2653.5,0.75361]
[1752069698407,0.75363,2653.5,2653.4,0.75362]
[1752069698703,29.68633324,2653.5,2653.4,1.41862]
[1752069699004,2.82433324,2653.5,2653.4,1.41862]
[1752069699304,3.21344239,2653.9,2653.8,0.75353]
[1752069699608,32.10357604,2653.9,2653.8,1.41853]
[1752069699997,32.85707604,2653.9,2653.8,1.41853]
[1752069700205,32.39227604,2653.9,2653.8,1.41853]
[1752069700604,32.85707604,2653.9,2653.8,0.665]
[1752069701005,32.85607604,2653.9,2653.8,0.665]
[1752069701200,32.85607604,2653.9,2653.8,1.41853]
[1752069701403,0.75363,2653.5,2653.4,0.75361]
[1752069701598,0.75367,2653.4,2653.3,0.75365]
[1752069701803,0.75369,2653.3,2653.2,0.75368]
[1752069702004,0.75364,2653.5,2653.4,0.75363]
[1752069702204,2.31912049,2653.5,2653.4,1.70953]
[1752069702408,0.75366,2653.4,2653.3,0.75365]
[1752069702607,0.75366,2653.4,2653.3,0.665]
[1752069702812,1.99146,2653.4,2653.3,0.665]
[1752069703004,1.99146,2653.4,2653.3,1.41867]
[1752069703205,2.45626,2653.4,2653.3,0.665]
[1752069704411,3.8811,2653.6,2653.3,1.6209]
[1752069704607,0.75364,2653.4,2653.3,2.37456]
[1752069704808,0.75364,2653.4,2653.3,1.6209]
[1752069705009,27.61364,2653.4,2653.3,2.37457]
[1752069705204,2.01394,2653.5,2653.4,0.75364]
[1752069705411,0.75364,2653.5,2653.4,1.6209]
[1752069705715,0.75364,2653.5,2653.4,2.37454]
[1752069705909,0.75357,2653.7,2653.6,0.75358]
[1752069706111,27.61257,2653.7,2653.6,2.37448]
[1752069706306,27.61257,2653.7,2653.6,1.6209]
[1752069706513,27.61257,2653.7,2653.6,0.665]
[1752069706712,28.07737,2653.7,2653.6,1.41858]
[1752069706912,28.07737,2653.7,2653.6,0.665]
[1752069707112,31.28517,2653.7,2653.6,0.665]
[1752069707617,0.75358,2653.6,2653.5,0.75361]
[1752069707810,2.01298,2653.6,2653.5,1.41861]
[1752069708010,2.47778,2653.6,2653.5,1.41861]
[1752069708613,1.21838,2653.6,2653.5,0.75361]
[1752069708817,2.72868,2653.6,2653.5,0.75361]
[1752069709011,0.4648,2653.6,2653.5,1.41861]
[1752069709213,2.77422007,2653.6,2653.5,0.665]
[1752069709513,0.75376,2653.0,2652.9,0.18559795]
[1752069709710,0.75376,2653.0,2652.9,0.85059795]
[1752069709711,1.21856,2653.0,2652.9,0.85059795]
[1752069710106,0.75376,2653.0,2652.9,0.85059795]
[1752069710818,2.56896,2653.0,2652.9,1.60437795]
[1752069711016,3.2078,2653.1,2653.0,0.75375]
[1752069711312,3.96153,2653.1,2653.0,1.6564]
[1752069711517,3.96153,2653.1,2653.0,2.41015]
[1752069713215,3.96153,2653.1,2653.0,1.6564]
[1752069713411,3.96153,2653.1,2653.0,2.41015]
[1752069713617,5.09182,2653.6,2653.0,5.61795]
[1752069713813,30.29657566,2653.5,2653.2,0.75368]
[1752069714016,0.7537,2653.3,2653.2,1.75858]